Cogmind - Beta 13 *** ADVENTURER MODE // 2024.07.12 @ 15:17:37 Player: AnotherZach Result: Self-destructed Performance ------------- Evolutions (5) 2500 Regions Visited (22) 4400 Robots Destroyed (366) 1830 Value Destroyed (15649) 15649 Prototype IDs (42) 840 Alien Tech Used (0) 0 Bonus (9662) 9662 TOTAL SCORE: 34881 Bonus ------- High Alert Combat Kills 1757 Follower Combat Kills 5425 Entered Garrisons 800 Used RIF Installer 1500 Network Hubs Disabled 400 Aligned with FarCom 300 Built Enhanced Grunts 300 Met R17 at Cetus 500 Friendly Fire -1320 Cogmind --------- Core Integrity 627/1000 Matter 211/300 Energy 48/150 System Corruption 0% Temperature Cool (83) Movement Core (100) Ox1 Location -5/Factory Parts ------- > --- POWER (1) -------- Micro Fission Core > --- PROPULSION (6) --- (None) > --- UTILITY (6) ------ Gravity Neutralizer Enhanced Optical Array Improved Target Analyzer Precision Energy Filter Hacking Suite System Restoration Module > --- WEAPON (4) ------- Tesla Rifle Tesla Rifle > --- INVENTORY (5) ---- Terrain Scan Processor Precision Energy Filter Peak State ------------ > --- POWER ------------ Quantum Reactor > --- PROPULSION ------- Improved Heavy Treads Improved Heavy Treads Centrium Heavy Treads > --- UTILITY ---------- Advanced Cooling System Huge Storage Unit Centrium Medium Armor Plating Advanced Hacking Suite > --- WEAPON ----------- Advanced Variable Charge Gun Hypervelocity Coil Gun Advanced KE Penetrator Advanced KE Penetrator > --- INVENTORY -------- Particle Reactor Quantum Reactor Centrium Heavy Treads Advanced Heat Sink Compact Battery Matter Compressor Gravity Neutralizer Advanced Targeting Computer Advanced Particle Charger Improved Weapon Shielding Centrium Medium Armor Plating Centrium Medium Armor Plating EM Disruption Field Hacking Suite Improved System Shield Improved System Shield Relay Coupler [Sentry] Advanced System Restoration Module KE Penetrator Railgun Remote Datajack Improved Remote Datajack Powered Hammer [Rating: 121] Favorites ----------- Power Light Nuclear Core Engine Ion Engine Power Core Light Nuclear Core Reactor Quantum Reactor Propulsion Light Treads Treads Light Treads Leg Carbon-fiber Leg Wheel Armored Wheel Flight Unit Field Propulsion Drive Utility Huge Storage Unit Device Advanced Cooling System Storage Huge Storage Unit Processor Advanced Targeting Computer Hackware Advanced Hacking Suite Protection Improved Weapon Shielding Weapon XL Autogun Subcomponent Energy Gun EM Shotgun Energy Cannon Advanced Plasma Cannon Ballistic Gun XL Autogun Subcomponent Launcher Rocket Launcher Special Weapon Remote Datajack Impact Weapon Powered Hammer Slashing Weapon Ripper Build | -11 -10 -10 -9 -9 -9 -8 -8 -8 -8 -7 -7 -7 -7 -6 -6 -6 -6 -6 -6 -5 -5 -5 ------- Run | Yrd Mat Min Mat Min Exi Min Mat Gar Mat Fac Gar Fac Gar Fac Ext Cet Arc Hub Gar Fac Was Fac Slots Evolved 10 | . . . 2 . . . 2 . . 2 . . . 2 . . . . . 2 . . Power . | . . . . . . . . . . . . . . . . . . . . . . . Propulsion 4 | . . . 1 . . . . . . 1 . . . 2 . . . . . . . . Utility 4 | . . . . . . . 1 . . 1 . . . . . . . . . 2 . . Weapon 2 | . . . 1 . . . 1 . . . . . . . . . . . . . . . Parts Attached 390 | 7 7 1 28 3 1 2 24 33 42 36 12 5 34 8 14 9 . 12 30 43 7 32 Power 25 | 1 2 . 1 . . . 6 2 3 1 1 . 1 . 1 1 . 1 1 . . 3 Engine 10 | 1 2 . 1 . . . 4 1 . . 1 . . . . . . . . . . . Core 9 | . . . . . . . 2 1 3 1 . . . . 1 . . . . . . 1 Reactor 6 | . . . . . . . . . . . . . 1 . . 1 . 1 1 . . 2 Propulsion 72 | 2 2 1 5 . . . 3 6 10 6 . . 9 1 . 1 . 2 10 5 4 5 Treads 42 | . 2 1 5 . . . 3 6 9 6 . . 5 1 . 1 . 2 . . . 1 Leg 19 | . . . . . . . . . . . . . . . . . . . 10 5 4 . Wheel 6 | 2 . . . . . . . . . . . . 4 . . . . . . . . . Hover . | . . . . . . . . . . . . . . . . . . . . . . . Flight 5 | . . . . . . . . . 1 . . . . . . . . . . . . 4 Utility 134 | 2 2 . 4 2 1 . 7 4 9 15 3 2 11 2 6 3 . 6 9 26 . 20 Device 48 | 1 . . . 1 . . 1 . 3 2 . . 6 . 2 2 . 4 3 8 . 15 Storage 8 | 1 1 . 1 1 1 . 1 . . . . . . . . . . . . 1 . 1 Processor 4 | . . . . . . . . . . . . . . . . . . . 1 1 . 2 Hackware 47 | . . . . . . . 2 2 4 8 2 2 4 1 2 . . 1 4 13 . 2 Protection 27 | . 1 . 3 . . . 3 2 2 5 1 . 1 1 2 1 . 1 1 3 . . Artifact . | . . . . . . . . . . . . . . . . . . . . . . . Weapon 159 | 2 1 . 18 1 . 2 8 21 20 14 8 3 13 5 7 4 . 3 10 12 3 4 Energy Gun 26 | 2 . . 8 . . . 1 . 3 1 . . 2 1 . 1 . 1 . 1 2 3 Energy Cannon 2 | . . . 1 . . . . . . . . . . . . . . . . . . 1 Ballistic Gun 79 | . 1 . 7 . . 2 5 14 9 6 3 . 5 2 4 3 . 1 8 8 1 . Ballistic Cannon . | . . . . . . . . . . . . . . . . . . . . . . . Launcher 6 | . . . 1 1 . . . 2 . . . . 1 . . . . 1 . . . . Special Weapon 31 | . . . . . . . . 3 8 3 3 2 4 2 3 . . . 1 2 . . Impact Weapon 10 | . . . . . . . . . . 4 2 1 1 . . . . . 1 1 . . Slashing Weapon 5 | . . . 1 . . . 2 2 . . . . . . . . . . . . . . Piercing Weapon . | . . . . . . . . . . . . . . . . . . . . . . . Special Melee Weapon . | . . . . . . . . . . . . . . . . . . . . . . . Unidentified Prototypes 17 | . . . 3 1 . . 1 . 2 2 . . 1 . . 4 . . 1 . 1 1 Corrupted Parts 6 | . . . . . . . . . . . . . 1 . . 1 . . . 3 . 1 System Corruption 20 | . . . . . . . . . . . . . 3 . . 1 . . . 14 . 2 Parts Lost 52 | . . . . . . 1 . 4 2 1 . . 2 . . . . 5 10 10 7 10 Power 4 | . . . . . . . . 1 . 1 . . . . . . . . . . 1 1 Propulsion 19 | . . . . . . . . 3 . . . . 2 . . . . 2 3 3 3 3 Utility 12 | . . . . . . . . . 2 . . . . . . . . . 2 4 . 4 Weapon 17 | . . . . . . 1 . . . . . . . . . . . 3 5 3 3 2 Highest Loss Streak 7 | . . . . . . 1 . 3 1 1 . . 1 . . . . 4 2 4 7 4 To Critical Strikes . | . . . . . . . . . . . . . . . . . . . . . . . Average Slot Usage (%) 86 | . 99 100 99 100 100 99 77 85 75 99 100 100 86 65 77 79 80 78 94 87 69 49 Engine 3 | . 13 14 11 11 11 11 8 1 . . 6 7 5 . . . . . . . . . Core 3 | . . . . . . . . 7 9 7 . . . . 4 . . . . . . 2 Reactor 1 | . . . . . . . . . . . . . 1 6 1 5 6 6 6 5 4 2 Treads 24 | . 19 28 32 33 33 33 27 26 27 30 30 30 21 20 20 19 20 18 2 . . . Leg 2 | . . . . . . . . . . . . . . . . . . . 32 29 25 . Device 3 | . 11 . . 10 11 11 1 . 1 . . . 3 6 1 6 6 7 10 8 16 21 Storage 8 | . 14 14 11 11 11 11 9 9 9 7 7 7 7 6 6 6 6 6 6 4 3 . Hackware 10 | . . . . . . . 6 6 12 14 18 23 19 12 14 6 6 7 1 12 . . Protection 4 | . 2 14 10 . . . 8 10 3 6 3 . . . 3 6 6 3 3 4 5 . Energy Gun 3 | . 18 14 16 11 11 9 1 . 2 . . . 3 6 . 3 6 6 . . 2 . Ballistic Gun 14 | . 9 14 15 14 11 14 13 17 8 25 26 23 16 4 18 22 20 18 19 8 3 . Special Weapon 1 | . . . . . . . . 1 2 2 1 3 2 1 4 . . . 4 4 3 . Naked Turns . | . . . . . . . . . . . . . . . . . . . . . . . Heaviest Build 134 | 14 19 19 38 97 96 56 107 109 103 107 110 107 116 116 124 133 132 133 133 134 129 32 Greatest Support 230 | 26 40 40 63 60 60 60 62 62 62 100 100 100 162 225 225 230 230 230 180 127 127 39 Greatest Overweight (x) 4 | . . . . 1 1 . 1 2 1 1 1 1 4 . . . . . 1 2 1 2 Average Overweight (x) . | . . . . . . . . 1 1 . . 1 . . . . . . . . . . Largest Inventory Capacity 25 | 8 10 10 15 25 25 20 25 25 25 25 25 25 25 25 25 25 25 25 25 25 25 5 Average Capacity 23 | 7 9 10 13 24 24 20 23 25 25 25 25 25 25 25 25 25 25 25 25 23 19 5 Most Carried 25 | 8 10 10 15 18 23 20 25 25 25 25 25 24 25 25 25 25 25 25 25 25 25 5 Average Carried 21 | 4 8 9 12 17 19 19 23 24 23 24 22 22 23 23 23 23 24 24 23 20 18 2 Final Capacity 25 | 8 10 10 15 25 20 20 25 25 25 25 25 25 25 25 25 25 25 25 25 25 5 5 Final Carried 25 | 8 10 10 15 18 20 19 25 25 25 25 22 22 25 24 25 25 25 25 25 20 5 2 Class Distribution -------------------- 32% | Commander-Skirmisher 18% | Hacker-Skirmisher 8% | Scavenger-Skirmisher 8% | Bothacker-Skirmisher 8% | Skirmisher 6% | Tank 5% | Mutant 4% | Scavenger-Mutant 3% | Commander-Tank Dominant Class ---------------- Mutant | -10/Materials Mutant | -10/Mines Tank | -9/Materials Skirmisher | -9/Mines Skirmisher | -9/Exiles Skirmisher | -8/Mines Hacker-Skirmisher | -8/Materials Commander-Skirmisher | -8/Garrison Commander-Skirmisher | -8/Materials Commander-Skirmisher | -7/Factory Commander-Skirmisher | -7/Garrison Commander-Skirmisher | -7/Factory Bothacker-Skirmisher | -7/Garrison Commander-Skirmisher | -6/Factory Commander-Skirmisher | -6/Extension Commander-Skirmisher | -6/Cetus Commander-Skirmisher | -6/Archives Commander-Skirmisher | -6/Hub_04(d) Scavenger-Skirmisher | -6/Garrison Scavenger-Mutant | -5/Factory Scavenger-Mutant | -5/Waste Mutant | -5/Factory Resources | -11 -10 -10 -9 -9 -9 -8 -8 -8 -8 -7 -7 -7 -7 -6 -6 -6 -6 -6 -6 -5 -5 -5 ----------- Run | Yrd Mat Min Mat Min Exi Min Mat Gar Mat Fac Gar Fac Gar Fac Ext Cet Arc Hub Gar Fac Was Fac Matter Collected 13200 | 247 110 . 836 19 9 171 1316 1344 1790 1233 375 158 1345 257 1066 97 91 387 907 1239 47 156 Remotely . | . . . . . . . . . . . . . . . . . . . . . . . Salvage Created 16966 | 132 479 . 1944 4 . 199 2330 887 2468 1599 543 248 2044 466 1124 . 203 675 854 511 . 256 Parts 908 | 9 38 . 111 2 . 20 131 54 144 92 22 12 79 24 44 . 14 40 34 20 . 18 Haulers Intercepted 6 | . 2 . 3 . . . 1 . . . . . . . . . . . . . . . Recyclers Shooed 8 | . . . 1 . . . 1 . 2 . . 2 . . 2 . . . . . . . Parts Field Recycled . | . . . . . . . . . . . . . . . . . . . . . . . Retrieved Matter . | . . . . . . . . . . . . . . . . . . . . . . . Parts Self-Destructed . | . . . . . . . . . . . . . . . . . . . . . . . Prevented . | . . . . . . . . . . . . . . . . . . . . . . . Kills | -11 -10 -10 -9 -9 -9 -8 -8 -8 -8 -7 -7 -7 -7 -6 -6 -6 -6 -6 -6 -5 -5 -5 ------- Run | Yrd Mat Min Mat Min Exi Min Mat Gar Mat Fac Gar Fac Gar Fac Ext Cet Arc Hub Gar Fac Was Fac Combat Hostiles Destroyed 286 | . 10 . 32 . . 11 43 24 39 26 9 1 26 8 9 . . 17 19 6 . 6 Guns 258 | . 8 . 27 . . 5 40 23 39 26 9 1 22 8 9 . . 13 19 6 . 3 Cannons 2 | . . . . . . . . . . . . . . . . . . . . . . 2 AOE 25 | . 2 . 4 . . 6 3 1 . . . . 4 . . . . 4 . . . 1 Classes Destroyed 19 | 2 5 . 3 . . 1 3 2 . . . . . . . . . 3 . . . . Worker 10 | . . . . . . . 2 . 2 4 . . . 1 . . . . . 1 . . Builder 15 | . 1 . 2 1 . . 2 . 4 2 . . . . 1 . . . . 1 . 1 Tunneler 3 | 2 . . . . . . . . . . . . . . . . . . . 1 . . Hauler 6 | . 2 . 3 . . . 1 . . . . . . . . . . . . . . . Recycler 17 | 1 . . 2 . . . 1 . 4 3 . 2 . . 4 . . . . . . . Mechanic 1 | . . . . . . . 1 . . . . . . . . . . . . . . . Operator 13 | . . . 2 . . . 3 . 1 1 . . . . . . 3 1 . 1 . 1 Watcher 26 | . 3 . 5 . . . 5 . 5 3 . 1 . . 2 . . 1 . 1 . . Swarmer 58 | . 6 . 2 . . 7 5 3 2 7 . . 7 . 5 . . 2 8 . . 4 Grunt 115 | . 4 . 19 . . 3 29 13 13 3 3 . 12 3 2 . . 1 8 2 . . Brawler 7 | . . . . . . 1 . . 1 . 1 . 1 1 . . . . 1 1 . . Duelist 9 | . . . 1 . . . 1 . . . 3 1 3 . . . . . . . . . Protector 1 | . . . . . . . . . . . . . . . . . . 1 . . . . Sentry 52 | . . . 10 . . . 7 3 17 6 2 . 3 2 1 . . . 1 . . . Demolisher 3 | . . . . . . . . . . . . . . . . . . 3 . . . . Hunter 14 | . . . . . . . 1 1 5 3 . . . 1 . . . . 1 2 . . Programmer 16 | . . . . . . . . 3 1 7 . . . 1 . . . 1 . 1 . 2 Behemoth 1 | . . . . . . . . 1 . . . . . . . . . . . . . . Enhanced Grunt 1 | . . . . . . . . . . . . . . . . . 1 . . . . . Lightning 2 | . . . . . . . . . . . . . . . . . . 2 . . . . Assembled 7 | . . . . . . . . . . . . . . . . . . 7 . . . . Thug 1 | . . . . . . . . . . . . . . . 1 . . . . . . . Butcher 2 | . . . . . . . . . . . . . . . 2 . . . . . . . Best Kill Streak 10 | 2 4 . 9 1 . 10 10 4 5 4 2 3 4 6 6 . 1 7 5 3 . 5 Combat Bots Only 10 | . 3 . 5 . . 10 9 4 3 4 2 1 4 5 5 . . 7 5 2 . 4 Max Kills in Single Turn 4 | 1 1 . 2 1 . 3 3 2 2 3 1 1 2 1 3 . 1 4 1 2 . 2 Gunslinging 2 | . . . 1 . . . 1 1 . 2 . . 1 . 1 . . . . . . 1 Exploded 3 | . 1 . 2 . . 2 1 1 . . . . 1 . . . . 3 . . . 1 Melee . | . . . . . . . . . . . . . . . . . . . . . . . Uniques/NPCs Destroyed . | . . . . . . . . . . . . . . . . . . . . . . . Combat | -11 -10 -10 -9 -9 -9 -8 -8 -8 -8 -7 -7 -7 -7 -6 -6 -6 -6 -6 -6 -5 -5 -5 -------- Run | Yrd Mat Min Mat Min Exi Min Mat Gar Mat Fac Gar Fac Gar Fac Ext Cet Arc Hub Gar Fac Was Fac Hostile Shots Fired 1562 | . 36 . 108 . . 17 78 123 91 150 33 3 120 46 65 . . 157 335 86 6 108 Missed 481 | . 11 . 25 . . 3 22 30 30 46 12 . 41 13 25 . . 42 104 29 . 48 Damage Taken 15136 | . 219 . 900 . . 229 749 1412 760 1036 276 249 756 528 666 56 . 2472 2334 1230 211 1053 Core 1574 | . 36 . 81 . . 13 79 140 36 100 26 21 66 79 109 . . 181 234 119 16 238 Absorbed by Shields 50 | . . . . . . . . 12 . . . . . . 21 17 . . . . . . Redirected to Shielding 380 | . 12 . 29 . . . . 53 92 72 13 . . . . . . . . 9 63 37 Ignored by Resistances 4336 | . 71 . 267 . . 66 216 400 213 327 85 70 231 146 197 20 . 675 669 339 56 288 Regen/Repaired (Parts) 1348 | . 21 . 58 . . . 282 . . 314 47 42 . . 224 49 . 67 . 244 . . Core Remaining (%) 68 | 100 . 85 . . . 76 . . 53 . . . 69 . . . . . 29 . . . Volleys Fired 929 | 6 31 . 81 2 . 9 81 91 102 78 26 12 127 35 54 . 7 40 61 64 . 22 Largest 4 | 2 2 . 3 1 . 3 4 3 1 4 4 3 4 1 4 . 4 4 3 3 . 2 Hottest 347 | 80 80 . 115 33 . 103 125 75 60 80 88 60 115 35 133 . 185 347 148 93 . 163 Shots Fired 2023 | 12 62 . 230 2 . 23 144 151 102 246 83 28 308 53 130 . 28 130 154 110 . 27 Gun 1881 | 12 62 . 227 . . 18 144 140 87 237 78 24 298 43 107 . 28 128 147 88 . 13 Cannon 14 | . . . . . . . . . . . . . . . . . . . . . . 14 Launcher 20 | . . . 3 2 . 5 . 4 . . . . 4 . . . . 2 . . . . Special 108 | . . . . . . . . 7 15 9 5 4 6 10 23 . . . 7 22 . . Kinetic 1589 | . 17 . 124 . . 12 124 140 87 237 78 24 277 25 107 . 21 99 138 79 . . Thermal 105 | 6 14 . . . . . . . . . . . 8 18 . . 7 29 9 . . 14 Explosive 20 | . . . 3 2 . 5 . 4 . . . . 4 . . . . 2 . . . . Electromagnetic 201 | 6 31 . 103 . . 6 20 . . . . . 13 . . . . . . 9 . 13 Robot Hit Streak 40 | 6 10 . 31 . . 7 40 25 26 24 24 11 40 10 27 . 7 8 27 25 . 28 Robot Miss Streak 5 | 1 2 . 4 . . 3 5 4 5 5 1 1 2 5 3 . 4 3 3 1 . 1 Penetration Max 2 | . . . . . . . . 1 . . 1 . 1 . 2 . 1 1 1 1 . . Secondary Targets 37 | . 4 . 3 . . . 4 3 . 4 3 1 2 . 2 . . 3 7 . . 1 Max Gunslinging Chain 2 | . 1 . 1 . . . 1 1 . 2 1 1 2 . 1 . . 1 1 . . 1 Autonomous 26 | . . . . . . . . . . . . . 8 18 . . . . . . . . Shots Hit Robots 1501 | 8 38 . 171 . . 17 115 120 85 172 48 17 228 47 105 . 17 78 120 97 . 18 Core Hits 732 | 3 22 . 78 1 . 17 103 54 73 65 19 5 94 17 40 . 10 53 43 27 . 8 Critical Kills 15 | . . . . . . . . 2 . . . . 4 . 5 . 1 2 . 1 . . Critical Parts Destroyed 32 | . . . . . . . . 4 . . . . 6 5 7 . 3 3 2 2 . . Critical Strikes 55 | . 1 . 1 . . . . 6 . . . . 10 5 15 . 5 5 2 3 . 2 Destroy 51 | . . . . . . . . 6 . . . . 10 5 15 . 5 5 2 3 . . Corrupt 4 | . 1 . 1 . . . . . . . . . . . . . . . . . . 2 Melee Attacks 30 | . . . 2 . . . 3 6 . 8 2 . 1 . . . . . . 8 . . Impact 19 | . . . . . . . . . . 8 2 . 1 . . . . . . 8 . . Slashing 11 | . . . 2 . . . 3 6 . . . . . . . . . . . . . . Piercing . | . . . . . . . . . . . . . . . . . . . . . . . Sneak Attacks 1 | . . . . . . . 1 . . . . . . . . . . . . . . . Combat Hostiles . | . . . . . . . . . . . . . . . . . . . . . . . Follow-up Attacks . | . . . . . . . . . . . . . . . . . . . . . . . Damage Inflicted 37183 | 98 561 . 2876 38 . 694 5330 2876 4825 3559 948 268 3944 1232 2275 . 623 2366 2421 1601 . 648 Guns 34054 | 98 443 . 2484 . . 225 4900 2815 4669 3559 948 268 3648 1232 2275 . 623 1670 2421 1601 . 175 Cannons 396 | . . . . . . . . . . . . . . . . . . . . . . 396 Explosions 2664 | . 118 . 392 38 . 469 361 61 156 . . . 296 . . . . 696 . . . 77 Melee 69 | . . . . . . . 69 . . . . . . . . . . . . . . . Ramming . | . . . . . . . . . . . . . . . . . . . . . . . Kinetic 29111 | . 51 . 1261 . . 160 4446 2815 4669 3559 948 268 2999 412 2275 . 487 1143 2186 1432 . . Thermal 3469 | 32 212 . 177 . . . 361 . 156 . . . 417 820 . . 136 527 235 . . 396 Explosive 1318 | . . . 215 38 . 469 . 61 . . . . 296 . . . . 162 . . . 77 Electromagnetic 3216 | 66 298 . 1223 . . 65 454 . . . . . 232 . . . . 534 . 169 . 175 Impact . | . . . . . . . . . . . . . . . . . . . . . . . Slashing 69 | . . . . . . . 69 . . . . . . . . . . . . . . . Piercing . | . . . . . . . . . . . . . . . . . . . . . . . Highest Corruption 18 | . . . . . . . . . 2 1 . 1 3 1 1 1 . 9 9 16 16 18 Average Corruption 8 | . . . . . . . . . 1 1 . 1 1 1 1 1 . 7 9 11 16 12 Corruption Purged 43 | . . . . . . . . . 3 2 . . 4 . 1 1 . 2 . 7 . 23 Corruption Blocked . | . . . . . . . . . . . . . . . . . . . . . . . Effects 182 | . . . . . . . . . . 4 . 2 4 1 1 1 . 12 49 79 15 14 Message Errors 52 | . . . . . . . . . . 2 . 1 2 1 1 . . 1 12 25 4 3 Matter Fused 37 | . . . . . . . . . . 1 . . 2 . . 1 . 4 11 13 2 3 Heat Flow Errors 15 | . . . . . . . . . . . . . . . . . . . 3 10 1 1 Energy Discharges 20 | . . . . . . . . . . . . . . . . . . 2 3 12 1 2 Parts Rejected 5 | . . . . . . . . . . . . . . . . . . 2 . 1 1 1 Data Loss (minor) 19 | . . . . . . . . . . . . 1 . . . . . . 8 7 . 3 Data Loss (major) 7 | . . . . . . . . . . . . . . . . . . . 4 2 1 . Misfires 4 | . . . . . . . . . . . . . . . . . . . . 4 . . Alerts 7 | . . . . . . . . . . 1 . . . . . . . 2 2 1 1 . Misdirections 7 | . . . . . . . . . . . . . . . . . . . . 2 4 1 Weapon Failures 9 | . . . . . . . . . . . . . . . . . . 1 6 2 . . Overload Shots 5 | . . . . . . . . . . . . . . . . . . 5 . . . . Overflow Damage 224 | . . . . . . . . . 103 . . . . . . . . . . . . 121 Projectiles 42 | . . . . . . . . . . . . . . . . . . . . . . 42 Explosions 182 | . . . . . . . . . 103 . . . . . . . . . . . . 79 Melee . | . . . . . . . . . . . . . . . . . . . . . . . Knockbacks . | . . . . . . . . . . . . . . . . . . . . . . . Impact . | . . . . . . . . . . . . . . . . . . . . . . . Kinetic . | . . . . . . . . . . . . . . . . . . . . . . . Secondary . | . . . . . . . . . . . . . . . . . . . . . . . Self-Inflicted Damage 639 | . . . 30 . . 41 125 25 121 . . . 57 . . . . 114 . . . 126 Shots 16 | . . . 1 . . 2 3 2 2 . . . 2 . . . . 2 . . . 2 Rammed . | . . . . . . . . . . . . . . . . . . . . . . . Targets Rammed . | . . . . . . . . . . . . . . . . . . . . . . . Kicked . | . . . . . . . . . . . . . . . . . . . . . . . Crushed . | . . . . . . . . . . . . . . . . . . . . . . . Highest Temperature 432 | 54 90 . 240 . . 70 432 246 225 211 232 84 328 154 289 . 15 414 193 268 91 198 Average Temperature 67 | 23 31 . 67 . . 27 84 47 62 53 55 35 96 42 89 . 10 81 31 94 54 79 Received Heat Transfer 4277 | . 63 . 465 . . 144 441 571 225 297 63 18 210 213 345 4 . 84 870 138 9 117 Effects 6 | . . . . . . . 2 . . . . . 4 . . . . . . . . . Shutdowns 1 | . . . . . . . 1 . . . . . . . . . . . . . . . Energy Bleed 1 | . . . . . . . . . . . . . 1 . . . . . . . . . Interference 3 | . . . . . . . . . . . . . 3 . . . . . . . . . Damage (minor) 1 | . . . . . . . 1 . . . . . . . . . . . . . . . Siege Activations . | . . . . . . . . . . . . . . . . . . . . . . . Robots Corrupted 1 | . . . 1 . . . . . . . . . . . . . . . . . . . Combat Hostiles 1 | . . . 1 . . . . . . . . . . . . . . . . . . . Parts Fried 9 | . . . 6 . . . . . . . . . . . . . . 2 . 1 . . Impact Corruptions . | . . . . . . . . . . . . . . . . . . . . . . . Robots Melted . | . . . . . . . . . . . . . . . . . . . . . . . Combat Hostiles . | . . . . . . . . . . . . . . . . . . . . . . . Parts Melted 8 | . . . 2 . . . . 2 . . 1 . . . . . . . 1 . . 2 Heat Transferred 3551 | 75 250 . 200 . . . 300 . 100 . . . 375 700 . . 185 570 296 . . 500 Parts Sabotaged . | . . . . . . . . . . . . . . . . . . . . . . . Parts Stolen . | . . . . . . . . . . . . . . . . . . . . . . . Parts Stripped . | . . . . . . . . . . . . . . . . . . . . . . . Power Chain Reactions 10 | . 2 . 4 . . . 3 . . . . . . . . . . 1 . . . . Alert | -11 -10 -10 -9 -9 -9 -8 -8 -8 -8 -7 -7 -7 -7 -6 -6 -6 -6 -6 -6 -5 -5 -5 ------- Run | Yrd Mat Min Mat Min Exi Min Mat Gar Mat Fac Gar Fac Gar Fac Ext Cet Arc Hub Gar Fac Was Fac Peak Influence 1767 | 15 195 18 501 101 . 349 491 1146 620 267 997 577 1767 1216 630 408 212 875 1154 587 76 172 Initial 803 | . 8 18 5 101 . . 106 5 481 . 164 453 194 803 422 209 70 61 481 490 76 . Average 304 | 4 52 18 233 33 . 218 204 649 104 43 439 462 921 950 435 287 194 536 914 395 18 31 Maximum Alert Level 5 | . . . 2 . . 1 2 4 2 1 3 2 5 4 2 2 1 3 4 2 . . Low Security (%) 50 | 100 100 100 38 100 . 32 56 14 82 98 3 . 3 . 2 . 43 9 . . 100 100 Level 1 19 | . . . 57 . . 67 33 15 8 1 58 26 11 . 26 82 56 5 . 39 . . Level 2 16 | . . . 4 . . . 10 15 9 . 24 73 6 . 71 17 . 63 22 60 . . Level 3 11 | . . . . . . . . 49 . . 12 . 49 75 . . . 20 67 . . . Level 4 2 | . . . . . . . . 4 . . . . 24 24 . . . . 9 . . . Level 5 . | . . . . . . . . . . . . . 4 . . . . . . . . . High Security . | . . . . . . . . . . . . . . . . . . . . . . . Max Security . | . . . . . . . . . . . . . . . . . . . . . . . Squads Dispatched 87 | . . . 7 . . . 16 . 9 14 . 5 . 8 1 . . 10 . 14 . 3 Investigation 29 | . . . 5 . . . 8 . 3 7 . 1 . 2 . . . 2 . 1 . . Extermination 16 | . . . . . . . . . . 7 . 1 . 1 . . . 2 . 3 . 2 Reinforcement 15 | . . . 2 . . . 5 . . . . . . . 1 . . 2 . 4 . 1 Assault 5 | . . . . . . . . . . . . . . 2 . . . . . 3 . . Garrison 22 | . . . . . . . 3 . 6 . . 3 . 3 . . . 4 . 3 . . Intercept . | . . . . . . . . . . . . . . . . . . . . . . . Searches Triggered . | . . . . . . . . . . . . . . . . . . . . . . . Construction Impeded 4 | . . . . . . . 3 . . . . . . . . . . . . . . 1 Haulers Reinforced 2 | . . . . . . . . . . . . . . . . . . . . 2 . . Active Scanning Responses . | . . . . . . . . . . . . . . . . . . . . . . . Cargo Convoy Interrupts . | . . . . . . . . . . . . . . . . . . . . . . . Stealth | -11 -10 -10 -9 -9 -9 -8 -8 -8 -8 -7 -7 -7 -7 -6 -6 -6 -6 -6 -6 -5 -5 -5 --------- Run | Yrd Mat Min Mat Min Exi Min Mat Gar Mat Fac Gar Fac Gar Fac Ext Cet Arc Hub Gar Fac Was Fac Distress Signals 24 | . . . 3 . . . 4 . 3 . . . . 2 5 2 . 1 . 3 . 1 Communications Jammed . | . . . . . . . . . . . . . . . . . . . . . . . Distress Signals . | . . . . . . . . . . . . . . . . . . . . . . . Times Spotted 544 | . 14 . 44 . . 13 53 36 49 50 22 10 35 18 38 9 11 35 36 50 6 15 Peak Tracking Total 10 | . 3 . 6 . . 6 10 5 6 4 4 4 4 4 7 5 1 7 6 7 5 6 Tactical Retreats 20 | . . . 1 . . 1 . 3 1 . . . 6 . 1 . . 2 1 2 . 2 Traps | -11 -10 -10 -9 -9 -9 -8 -8 -8 -8 -7 -7 -7 -7 -6 -6 -6 -6 -6 -6 -5 -5 -5 ------- Run | Yrd Mat Min Mat Min Exi Min Mat Gar Mat Fac Gar Fac Gar Fac Ext Cet Arc Hub Gar Fac Was Fac Traps Triggered 34 | . 1 . 1 . . . 1 12 1 3 6 1 3 . . . . 3 1 1 . . Indirectly 3 | . . . . . . . . . . . . . . . . . . 3 . . . . Trap Hack Attempts . | . . . . . . . . . . . . . . . . . . . . . . . Triggered . | . . . . . . . . . . . . . . . . . . . . . . . Disarmed 4 | . . . . . . . . . . . . 4 . . . . . . . . . . Reprogrammed 6 | . . . . . . . 6 . . . . . . . . . . . . . . . Reused 2 | . . . . . . . 2 . . . . . . . . . . . . . . . Traps Extracted . | . . . . . . . . . . . . . . . . . . . . . . . Installed . | . . . . . . . . . . . . . . . . . . . . . . . Triggered 6 | . . . 1 . . . 2 . . . . . 3 . . . . . . . . . Objects Rigged 3 | . . . . . . . 3 . . . . . . . . . . . . . . . Machines | -11 -10 -10 -9 -9 -9 -8 -8 -8 -8 -7 -7 -7 -7 -6 -6 -6 -6 -6 -6 -5 -5 -5 ---------- Run | Yrd Mat Min Mat Min Exi Min Mat Gar Mat Fac Gar Fac Gar Fac Ext Cet Arc Hub Gar Fac Was Fac Machines Disabled 65 | . . . 3 . . 1 4 3 5 2 3 . 4 1 . . 4 22 3 7 . 3 Max in Single Turn 12 | . . . 1 . . 1 1 1 4 1 1 . 1 1 . . 1 12 1 . . 2 Garrison Relay 12 | . . . . . . . . 2 . . 3 . 4 . . . . . 3 . . . Network Hub 2 | . . . . . . . . . . . . . . . . . . 2 . . . . Machines Repaired . | . . . . . . . . . . . . . . . . . . . . . . . Machines Dismantled . | . . . . . . . . . . . . . . . . . . . . . . . Machines Sabotaged . | . . . . . . . . . . . . . . . . . . . . . . . Overloaded Fab Kills . | . . . . . . . . . . . . . . . . . . . . . . . Hacking | -11 -10 -10 -9 -9 -9 -8 -8 -8 -8 -7 -7 -7 -7 -6 -6 -6 -6 -6 -6 -5 -5 -5 --------- Run | Yrd Mat Min Mat Min Exi Min Mat Gar Mat Fac Gar Fac Gar Fac Ext Cet Arc Hub Gar Fac Was Fac Machines Accessed 125 | . 9 . 14 . 4 . 12 2 17 17 1 6 4 3 13 . . 8 1 11 . 3 Terminals 79 | . 7 . 9 . . . 9 2 11 7 1 2 4 . 13 . . 7 1 6 . . Fabricators 10 | . . . . . . . . . . 5 . 1 . 1 . . . . . 2 . 1 Repair Stations 9 | . 1 . 1 . . . 1 . 1 1 . 2 . 1 . . . . . . . 1 Recycling Units 9 | . 1 . 2 . . . . . 2 2 . . . . . . . . . 2 . . Scanalyzers 7 | . . . 2 . . . 1 . 2 1 . . . . . . . . . . . 1 Garrison Access 7 | . . . . . . . 1 . 1 1 . 1 . 1 . . . 1 . 1 . . Total Hacks 450 | . 36 . 65 . 27 . 44 4 69 60 1 22 9 8 17 . . 24 7 48 . 9 Successful 320 | . 21 . 50 . 27 . 33 3 51 40 1 17 5 5 14 . . 15 1 31 . 6 Failed 127 | . 14 . 15 . . . 10 1 17 20 . 5 4 3 3 . . 9 6 17 . 3 Catastrophic 12 | . . . . . . . . 1 2 . . . 1 . . . . 2 1 5 . . Database Lockouts 3 | . 1 . . . . . 1 . 1 . . . . . . . . . . . . . Manual 238 | . 22 . 33 . 1 . 31 2 41 37 . 12 3 6 9 1 . 19 2 15 . 4 Terminals 235 | . 33 . 30 . . . 29 4 33 22 1 9 9 . 17 . . 22 7 19 . . Fabricators 66 | . . . . . . . . . . 28 . 9 . 3 . . . . . 22 . 4 Repair Stations 24 | . 2 . 7 . . . 4 . 3 2 . 2 . 1 . . . . . . . 3 Recycling Units 23 | . 1 . 7 . . . . . 6 4 . . . . . . . . . 5 . . Scanalyzers 52 | . . . 21 . . . 4 . 23 2 . . . . . . . . . . . 2 Garrison Access 23 | . . . . . . . 7 . 4 2 . 2 . 4 . . . 2 . 2 . . Terminal Hacks 105 | . 11 . 6 . 27 . 12 2 8 7 1 5 5 . 12 . . 5 1 3 . . Record 28 | . 2 . . . 26 . . . . . . . . . . . . . . . . . Part Schematic 2 | . . . . . . . . . 1 . . . . . . . . 1 . . . . Robot Schematic 10 | . . . . . . . 3 . 2 2 . . . . 2 . . 1 . . . . Robot Analysis 6 | . 2 . 1 . . . . . 2 . . . . . . . . 1 . . . . Open Door 10 | . . . . . . . . . . . . . 1 . 9 . . . . . . . Open DSF 1 | . . . . . . . . . . . . 1 . . . . . . . . . . Branch Access Points 2 | . . . 1 . . . . . . . . . . . . . . . . 1 . . Emergency Access Points 3 | . . . . . . . . 1 . . . . 1 . . . . . 1 . . . Terminal Index 6 | . 1 . . . . . 1 . . 1 . 1 . . . . . 1 . 1 . . Fabricator Index 1 | . . . . . . . . . . 1 . . . . . . . . . . . . Unreport Threat 5 | . 2 . . . . . 2 . . . . . . . 1 . . . . . . . Disarm Traps 1 | . . . . . . . . . . . . 1 . . . . . . . . . . Reprogram Traps 1 | . . . . . . . 1 . . . . . . . . . . . . . . . Dispatch Records 2 | . . . 1 . . . 1 . . . . . . . . . . . . . . . Maintenance Status 1 | . . . 1 . . . . . . . . . . . . . . . . . . . Surveillance Status 1 | . 1 . . . . . . . . . . . . . . . . . . . . . Patrol Status 1 | . . . . . . . 1 . . . . . . . . . . . . . . . Recall Investigation 2 | . . . . . . . . . . 1 . 1 . . . . . . . . . . Recall Extermination 1 | . . . . . . . . . . . . . . . . . . . . 1 . . Recall Reinforcements 1 | . . . . . . . 1 . . . . . . . . . . . . . . . Hauler Manifests 1 | . 1 . . . . . . . . . . . . . . . . . . . . . Registered Components 2 | . 1 . 1 . . . . . . . . . . . . . . . . . . . Zone Layout 11 | . 1 . 1 . . . 2 . 3 2 . 1 . . . . . 1 . . . . Garrison Registry 3 | . . . . . . . . 1 . . 1 . 1 . . . . . . . . . Patrol Navigation 1 | . . . . . . . . . . . . . 1 . . . . . . . . . Security Stations 1 | . . . . . . . . . . . . . 1 . . . . . . . . . Derelict Proto ID Bank 1 | . . . . . 1 . . . . . . . . . . . . . . . . . Fabricator Hacks 36 | . . . . . . . . . . 14 . 4 . . . . . . . 16 . 2 Network Status 1 | . . . . . . . . . . . . 1 . . . . . . . . . . Load Schematic 17 | . . . . . . . . . . 7 . 1 . . . . . . . 8 . 1 Build 18 | . . . . . . . . . . 7 . 2 . . . . . . . 8 . 1 Repair Station Hacks 14 | . 2 . 6 . . . 4 . 2 . . . . . . . . . . . . . Scan Component 7 | . 1 . 3 . . . 2 . 1 . . . . . . . . . . . . . Repair 7 | . 1 . 3 . . . 2 . 1 . . . . . . . . . . . . . Recycling Unit Hacks 7 | . 1 . 2 . . . . . 1 . . . . . . . . . . 3 . . Report Inventory 2 | . . . . . . . . . 1 . . . . . . . . . . 1 . . Retrieve Matter 1 | . . . . . . . . . . . . . . . . . . . . 1 . . Retrieve Components 4 | . 1 . 2 . . . . . . . . . . . . . . . . 1 . . Scanalyzer 51 | . . . 20 . . . 4 . 23 2 . . . . . . . . . . . 2 Insert Component 22 | . . . 9 . . . 2 . 9 1 . . . . . . . . . . . 1 Analyze 29 | . . . 11 . . . 2 . 14 1 . . . . . . . . . . . 1 Garrison Access Hacks 8 | . . . . . . . 1 . 1 2 . 1 . 1 . . . 1 . 1 . . Unlock Access 7 | . . . . . . . 1 . 1 1 . 1 . 1 . . . 1 . 1 . . Coupler Status 1 | . . . . . . . . . . 1 . . . . . . . . . . . . Unauthorized Hacks 99 | . 7 . 16 . . . 12 1 16 15 . 7 . 4 2 . . 9 . 8 . 2 Terminals 53 | . 7 . 11 . . . 8 1 9 1 . 4 . . 2 . . 8 . 2 . . Track 14 | . 4 . 3 . . . 2 1 . . . 1 . . . . . 3 . . . . Assimilate 6 | . . . 1 . . . 2 . 3 . . . . . . . . . . . . . Botnet 22 | . 3 . 6 . . . 2 . 3 1 . 1 . . 2 . . 3 . 1 . . Detonate 1 | . . . . . . . 1 . . . . . . . . . . . . . . . Disrupt 2 | . . . . . . . . . 1 . . 1 . . . . . . . . . . Operators 8 | . . . 1 . . . 1 . 2 . . 1 . . . . . 2 . 1 . . Fabricators 19 | . . . . . . . . . . 11 . 2 . 2 . . . . . 3 . 1 Report 3 | . . . . . . . . . . 1 . . . 1 . . . . . 1 . . Prioritize 6 | . . . . . . . . . . 3 . 1 . . . . . . . 1 . 1 Liberate 5 | . . . . . . . . . . 3 . . . 1 . . . . . 1 . . Fabnet 2 | . . . . . . . . . . 2 . . . . . . . . . . . . Haulers 2 | . . . . . . . . . . 1 . 1 . . . . . . . . . . Recompile 1 | . . . . . . . . . . 1 . . . . . . . . . . . . Repair Stations 5 | . . . . . . . . . 1 1 . 1 . 1 . . . . . . . 1 Mechanics 5 | . . . . . . . . . 1 1 . 1 . 1 . . . . . . . 1 Recycling Units 12 | . . . 4 . . . . . 4 2 . . . . . . . . . 2 . . Reject 6 | . . . 2 . . . . . 2 1 . . . . . . . . . 1 . . Recyclers 5 | . . . 2 . . . . . 1 1 . . . . . . . . . 1 . . Mask 1 | . . . . . . . . . 1 . . . . . . . . . . . . . Scanalyzers 1 | . . . 1 . . . . . . . . . . . . . . . . . . . Extract 1 | . . . 1 . . . . . . . . . . . . . . . . . . . Garrison Access 9 | . . . . . . . 4 . 2 . . . . 1 . . . 1 . 1 . . Broadcast 2 | . . . . . . . 1 . . . . . . 1 . . . . . . . . Restock 1 | . . . . . . . . . 1 . . . . . . . . . . . . . Decoy 1 | . . . . . . . . . . . . . . . . . . . . 1 . . Redirect 1 | . . . . . . . 1 . . . . . . . . . . . . . . . Reprogram 1 | . . . . . . . 1 . . . . . . . . . . . . . . . Intercept 2 | . . . . . . . 1 . 1 . . . . . . . . . . . . . Eject 1 | . . . . . . . . . . . . . . . . . . 1 . . . . Data Cores Recovered 5 | . . . . . . . 1 . . . . . . 1 . . . 1 . 1 . 1 Used . | . . . . . . . . . . . . . . . . . . . . . . . Hacking Detections 95 | . 7 . 12 . . . 11 1 14 15 . 5 4 2 6 . . 7 1 8 . 2 Full Trace Events 24 | . 2 . 2 . . . 5 1 2 6 . 1 2 1 . . . 1 . 1 . . Feedback Events 2 | . . . . . . . . . 2 . . . . . . . . . . . . . Corruption 2 | . . . . . . . . . 2 . . . . . . . . . . . . . Feedback Blocked . | . . . . . . . . . . . . . . . . . . . . . . . Robot Schematics Acquired 10 | . . . . . . . 3 . 2 2 . . . . 2 . . 1 . . . . Robots Built 31 | . . . . . . . . . . 10 . 4 . . . . . . . 15 . 2 Authchips 11 | . . . . . . . . . . 3 . . . . . . . . . 7 . 1 Time 946 | . . . . . . . . . . 317 . 125 . . . . . . . 428 . 76 Total Robot Build Rating 134 | . . . . . . . . . . 38 . 15 . . . . . . . 71 . 10 Part Schematics Acquired 27 | . . . 13 . . . 2 . 9 1 . . . . . . . 1 . . . 1 Parts Built 1 | . . . . . . . . . . 1 . . . . . . . . . . . . Authchips 1 | . . . . . . . . . . 1 . . . . . . . . . . . . Time 36 | . . . . . . . . . . 36 . . . . . . . . . . . . Total Part Build Rating 3 | . . . . . . . . . . 3 . . . . . . . . . . . . Parts Repaired 7 | . 1 . 3 . . . 2 . 1 . . . . . . . . . . . . . Time 234 | . 26 . 78 . . . 52 . 78 . . . . . . . . . . . . . Parts Recycled . | . . . . . . . . . . . . . . . . . . . . . . . Recycled Matter . | . . . . . . . . . . . . . . . . . . . . . . . Retrieved Matter . | . . . . . . . . . . . . . . . . . . . . . . . Retrieved Components 29 | . 9 . 19 . . . . . . . . . . . . . . . . 1 . . Parts Scanalyzed 21 | . . . 9 . . . 2 . 8 1 . . . . . . . . . . . 1 Part Schematics Acquired 21 | . . . 9 . . . 2 . 8 1 . . . . . . . . . . . 1 Parts Damaged 2 | . . . . . . . 1 . 1 . . . . . . . . . . . . . Bothacking | -11 -10 -10 -9 -9 -9 -8 -8 -8 -8 -7 -7 -7 -7 -6 -6 -6 -6 -6 -6 -5 -5 -5 ------------ Run | Yrd Mat Min Mat Min Exi Min Mat Gar Mat Fac Gar Fac Gar Fac Ext Cet Arc Hub Gar Fac Was Fac Used RIF Installer 3 | . . . . . . . . 1 . . 1 . 1 . . . . . . . . . Coupler Efficiency 1 | . . . . . . . . . . . 1 . . . . . . . . . . . Autooverride 1 | . . . . . . . . . . . . . 1 . . . . . . . . . Robots Hacked 84 | . . . . . . . . 6 11 5 5 3 5 11 9 . . 1 7 21 . . Non-combat 25 | . . . . . . . . . 11 . . 2 . 6 5 . . . . 1 . . Combat 59 | . . . . . . . . 6 . 5 5 1 5 5 4 . . 1 7 20 . . Autooverrided 6 | . . . . . . . . . . . . . . . 1 . . . . 5 . . Robot Hacks Applied 80 | . . . . . . . . 6 12 5 5 4 6 9 9 . . . 6 18 . . parse_system 1 | . . . . . . . . . . . . 1 . . . . . . . . . . map_walls 1 | . . . . . . . . . . . . . . 1 . . . . . . . . find_fabricator 1 | . . . . . . . . . . . . 1 . . . . . . . . . . drop_inventory 3 | . . . . . . . . . 1 . . . . . 2 . . . . . . . purge_threat 2 | . . . . . . . . . . . . . . . 1 . . . . 1 . . find_garrison 1 | . . . . . . . . . . . . . . . . . . . . 1 . . disrupt_area 1 | . . . . . . . . . . . . . . . 1 . . . . . . . amplify_resonance 1 | . . . . . . . . 1 . . . . . . . . . . . . . . disable_weapons 3 | . . . . . . . . . . . 1 . 1 . . . . . . 1 . . go_dormant 2 | . . . . . . . . 1 . . . . 1 . . . . . . . . . overwrite_iff 12 | . . . . . . . . 1 . . . . . 1 . . . . 2 8 . . streamctrl_low 1 | . . . . . . . . . . . . . . 1 . . . . . . . . streamctrl_high 2 | . . . . . . . . . 1 . . . . . . . . . . 1 . . formatsys_low 16 | . . . . . . . . . 10 . . 1 . 3 2 . . . . . . . formatsys_high 32 | . . . . . . . . 3 . 5 4 1 3 3 3 . . . 4 6 . . formatsys_deep 1 | . . . . . . . . . . . . . 1 . . . . . . . . . Relay Couplers Released 54 | . . . . . . . . 9 3 . 11 . 15 . . . . 3 13 . . . Ejected 3 | . . . . . . . . . . . . . . . . . . 3 . . . . Machine Destruction 48 | . . . . . . . . 9 . . 11 . 15 . . . . . 13 . . . Programmers 3 | . . . . . . . . . 3 . . . . . . . . . . . . . Attached 27 | . . . . . . . . 2 3 2 2 2 4 1 2 . . . 4 5 . . Fabnet Peak Effective % 3 | . . . . . . . . . . . . . . 3 3 3 3 3 3 1 1 1 Autooverrided 6 | . . . . . . . . . . . . . . 2 1 . . 1 1 1 . . Robots Rewired 27 | . . . . . . . . 6 . . . . 6 . 15 . . . . . . . Allies Hacked 3 | . . . . . . . . . . 2 . . . . . . . . . 1 . . Hacks Repelled . | . . . . . . . . . . . . . . . . . . . . . . . Allies | -11 -10 -10 -9 -9 -9 -8 -8 -8 -8 -7 -7 -7 -7 -6 -6 -6 -6 -6 -6 -5 -5 -5 -------- Run | Yrd Mat Min Mat Min Exi Min Mat Gar Mat Fac Gar Fac Gar Fac Ext Cet Arc Hub Gar Fac Was Fac Total Allies 169 | . . . . 5 . . 1 10 13 21 4 6 14 10 32 5 . 4 7 34 1 2 Largest Group 23 | . . . . 5 5 3 1 8 11 13 10 9 10 14 22 23 22 18 2 16 3 2 Highest-Rated Group 1108 | . . . . 92 92 40 16 128 123 301 257 249 236 333 759 1108 1088 680 64 590 89 82 Highest-Rated Ally 159 | . . . . 31 31 16 16 16 19 41 41 41 39 39 159 159 152 96 41 48 31 41 Total Orders 104 | . . . . . . . . 2 38 16 24 8 2 5 3 1 1 3 . 1 . . STAY 23 | . . . . . . . . 1 10 3 7 . 1 . . . . 1 . . . . ROAM 1 | . . . . . . . . . . . . . . 1 . . . . . . . . FOLLOW 9 | . . . . . . . . 1 3 2 2 . 1 . . . . . . . . . GUARD 15 | . . . . . . . . . . . 5 7 . 1 1 . . 1 . . . . AID 21 | . . . . . . . . . 2 6 5 1 . 1 2 1 1 1 . 1 . . DROP 10 | . . . . . . . . . 5 3 2 . . . . . . . . . . . PICKUP 15 | . . . . . . . . . 12 1 2 . . . . . . . . . . . COLLECT 10 | . . . . . . . . . 6 1 1 . . 2 . . . . . . . . Ally Attacks 1021 | . . . . . . 17 11 69 . 111 76 44 27 126 124 57 34 109 26 147 23 20 Total Damage 25116 | . . . . . . 216 81 989 . 1447 1911 1280 759 2524 3457 1926 947 1883 975 5706 383 632 Kills 181 | . . . . . . 2 1 7 . 12 15 10 4 17 27 10 4 21 9 39 1 2 Allies Corrupted 5 | . . . . . . . . . . . . . . . . . . 4 . 1 . . Allies Melted . | . . . . . . . . . . . . . . . . . . . . . . . Intel | -11 -10 -10 -9 -9 -9 -8 -8 -8 -8 -7 -7 -7 -7 -6 -6 -6 -6 -6 -6 -5 -5 -5 ------- Run | Yrd Mat Min Mat Min Exi Min Mat Gar Mat Fac Gar Fac Gar Fac Ext Cet Arc Hub Gar Fac Was Fac Robot Analysis Total 6 | . 2 . 1 . . . . . 2 . . . . . . . . 1 . . . . Derelict Logs Recovered 1 | . . . . 1 . . . . . . . . . . . . . . . . . . Drone Launches . | . . . . . . . . . . . . . . . . . . . . . . . Drone Recoveries . | . . . . . . . . . . . . . . . . . . . . . . . Exploration | -11 -10 -10 -9 -9 -9 -8 -8 -8 -8 -7 -7 -7 -7 -6 -6 -6 -6 -6 -6 -5 -5 -5 ------------- Run | Yrd Mat Min Mat Min Exi Min Mat Gar Mat Fac Gar Fac Gar Fac Ext Cet Arc Hub Gar Fac Was Fac Turns Passed 37691 | 91 1092 264 2210 1447 683 270 3016 2208 8874 4324 1928 878 2303 839 1233 600 214 1025 1113 2265 204 610 Spaces Moved 15868 | 61 591 164 1069 577 285 130 755 747 3235 1704 735 325 969 438 502 295 109 534 535 1335 168 605 Core 85 | 9 . . . . . . . . . . . . . . . . . . . . 40 36 Treads 12984 | . 406 164 1069 577 285 130 755 747 3235 1704 735 325 893 438 502 295 109 534 46 . . 35 Legs 1952 | . . . . . . . . . . . . . . . . . . . 489 1335 128 . Wheels 313 | 52 185 . . . . . . . . . . . 76 . . . . . . . . . Hover . | . . . . . . . . . . . . . . . . . . . . . . . Flight 534 | . . . . . . . . . . . . . . . . . . . . . . 534 Fastest Speed 37 | 50 90 160 160 160 160 160 155 240 235 152 152 232 120 160 160 160 160 160 116 116 50 37 Average Speed 191 | 84 138 160 160 235 238 160 213 243 237 224 229 232 188 160 160 160 160 160 148 139 112 48 Slowest Speed 320 | 90 160 160 160 240 240 160 241 320 240 236 232 232 240 160 160 160 160 160 240 253 190 170 Overloaded Moves . | . . . . . . . . . . . . . . . . . . . . . . . Propulsion Burnouts . | . . . . . . . . . . . . . . . . . . . . . . . Robots Hopped 1 | . . . . . . . . . . . . . . . . . . . . . . 1 Cave-ins Triggered . | . . . . . . . . . . . . . . . . . . . . . . . Exploration Rate (%) 54 | 4 79 30 95 97 62 34 71 67 91 42 48 9 72 12 73 61 79 46 55 29 80 10 Regions Visited 22 Branch Regions 8 Pre-discovered Areas . | . . . . . . . . . . . . . . . . . . . . . . . Known Exits Taken 5 | . . . 1 . . . 1 . . 1 . 1 . . . . . 1 . . . . Unknown Exits Taken 11 | 1 1 1 . 1 1 1 . . 1 . . . . 1 1 1 1 . . . . . Scrap Searched 2 | . . . . 1 . 1 . . . . . . . . . . . . . . . . Spaces Dug 79 | . . . 2 . . . 6 30 18 7 . . 1 . 4 . . . . 8 . 3 Terrain Destroyed 854 | . 5 . 58 28 . 62 68 32 126 8 . . 32 8 13 . 2 346 10 10 . 46 Melee 21 | . . . 2 . . . 2 1 . 7 . . 1 . . . . . . 8 . . Projectile 178 | . . . . . . . 43 2 65 1 . . 1 8 13 . 2 28 10 1 . 4 AOE 649 | . 5 . 56 28 . 62 23 29 61 . . . 25 . . . . 318 . . . 42 Terrain Rammed . | . . . . . . . . . . . . . . . . . . . . . . . Walls Destroyed . | . . . . . . . . . . . . . . . . . . . . . . . Machines Disabled . | . . . . . . . . . . . . . . . . . . . . . . . Actions | -11 -10 -10 -9 -9 -9 -8 -8 -8 -8 -7 -7 -7 -7 -6 -6 -6 -6 -6 -6 -5 -5 -5 --------- Run | Yrd Mat Min Mat Min Exi Min Mat Gar Mat Fac Gar Fac Gar Fac Ext Cet Arc Hub Gar Fac Was Fac Total 22130 | 88 813 166 1405 665 289 174 2106 1034 4457 2145 962 439 1356 545 850 425 135 610 742 1643 183 898 Wait 4017 | . 154 . 163 79 . 32 1189 27 964 272 150 96 88 58 237 101 8 11 53 139 . 196 Move 15845 | 60 590 163 1068 576 284 129 754 746 3234 1704 734 324 968 437 501 294 108 533 533 1335 167 603 Hop 1 | . . . . . . . . . . . . . . . . . . . . . . 1 Pick Up 453 | 15 17 1 36 4 3 1 33 42 59 28 13 2 43 5 9 11 6 11 37 43 5 29 Fast Attach . | . . . . . . . . . . . . . . . . . . . . . . . Attach 208 | 7 2 . 14 . . 1 7 25 26 14 . . 11 3 5 2 . 6 14 34 7 30 Detach 18 | . . . 1 . . . . 2 2 . . . . . . . . . . 5 3 5 Swap 182 | . 5 1 14 3 1 1 17 8 16 22 12 5 23 5 9 7 . 6 16 9 . 2 Drop 291 | . 14 1 26 1 1 1 22 37 54 15 15 . 42 1 4 10 6 3 22 5 1 10 Fire 929 | 6 31 . 81 2 . 9 81 91 102 78 26 12 127 35 54 . 7 40 61 64 . 22 Melee 30 | . . . 2 . . . 3 6 . 8 2 . 1 . . . . . . 8 . . Ram . | . . . . . . . . . . . . . . . . . . . . . . . Kick . | . . . . . . . . . . . . . . . . . . . . . . . Crush . | . . . . . . . . . . . . . . . . . . . . . . . Escape Stasis 46 | . . . . . . . . 18 . . 10 . 13 . . . . . 5 . . . Rewire 110 | . . . . . . . . 32 . 4 . . 40 1 31 . . . 1 1 . . Trap . | . . . . . . . . . . . . . . . . . . . . . . . Miscellaneous . | . . . . . . . . . . . . . . . . . . . . . . . Route ------- -11/Scrapyard -10/Materials (discovered 5 exits: *Mat x3 / [*Min x2]) -10/Mines -9/Materials (discovered 5 exits: *Mat x3 / *Min x2) -9/Mines (discovered 4 exits: *Mat x2 / *Exi / [*Zio]) -9/Exiles -8/Mines -8/Materials (discovered 2 exits: *Fac / Gar) -8/Garrison (discovered 4 exits: *Mat x4) -8/Materials (discovered 4 exits: *Fac x3 / Gar) -7/Factory (discovered 4 exits: *Fac / [*Sto x2] / Gar) -7/Garrison (discovered 3 exits: *Fac x3) -7/Factory (discovered 2 exits: *Fac / Gar) -7/Garrison (discovered 3 exits: *Fac x3) -6/Factory (discovered 2 exits: *Ext / Gar) -6/Extension (discovered 2 exits: *Fac / *Cet) -6/Cetus (discovered 2 exits: *Fac / [*Arc]) -6/Archives (discovered 2 exits: *Fac / *Hub) -6/Hub_04(d) (discovered 3 exits: *Fac x2 / Gar) -6/Garrison (discovered 2 exits: *Fac x2) -5/Factory (discovered 4 exits: [*Fac] / Upp x2 / Gar) -5/Waste -5/Factory History --------- Turn | Location | Event 6 | -11/Scrapyard | Discovered new exit (range 16) 92 | -11/Scrapyard | Entered Materials 124 | -10/Materials | Discovered new exit (range 12) 124 | -10/Materials | Discovered new exit (range 17) 302 | -10/Materials | Build established: Mutant 507 | -10/Materials | Central database locked down 527 | -10/Materials | Discovered new exit (range 8) 619 | -10/Materials | Discovered new exit (range 15) 719 | -10/Materials | Discovered new exit (range 11) 929 | -10/Materials | Repaired Ion Engine 1184 | -10/Materials | Entered Mines 1233 | -10/Mines | Met a Derelict bent on vengeance 1253 | -10/Mines | A weapon hastily lodged in a ceiling crevice suddenly fell to the ground 1279 | -10/Mines | Discovered new exit (range 5) 1448 | -10/Mines | Entered Materials 1448 | -9/Materials | Evolved 2 slots: Propulsion x1, Weapon x1 1533 | -9/Materials | Discovered new exit (range 15) 1599 | -9/Materials | Repaired Weapon Shielding 1633 | -9/Materials | Repaired EM Pulse Gun 1661 | -9/Materials | Repaired EM Pulse Gun 1935 | -9/Materials | Build established: Tank 2380 | -9/Materials | Discovered new exit (range 8) 2642 | -9/Materials | Discovered new exit (range 11) 2848 | -9/Materials | Discovered new exit (range 9) 3379 | -9/Materials | Discovered new exit (range 18) 3526 | -9/Materials | Identified exit to Mines 3658 | -9/Materials | Entered Mines 3684 | -9/Mines | Learned Materials stockpile data 3705 | -9/Mines | Found a damaged Exp. Sensor Array with a note attached 3718 | -9/Mines | Found Prototype Device 3719 | -9/Mines | Identified Exp. Sensor Array 3739 | -9/Mines | Discovered new exit (range 6) 4006 | -9/Mines | Build established: Skirmisher 4342 | -9/Mines | A Derelict revealed a hidden shortcut to a safe place 4466 | -9/Mines | Joined a pair of Derelicts in attacking an 0b10 outpost 4545 | -9/Mines | Discovered new exit (range 10) 4571 | -9/Mines | Assisted by bots powering up and referring to "LRC-V3" 5074 | -9/Mines | Deemed a non-threat by the Exiles lab entrance 5074 | -9/Mines | Discovered new exit (range 5) 5105 | -9/Mines | Entered Exiles 5105 | -9/Exiles | Accompanied by 5 allies 5135 | -9/Exiles | Led the pair of lost Derelicts to a safe place 5173 | -9/Exiles | Met 8R-AWN 5201 | -9/Exiles | Met EX-HEX 5290 | -9/Exiles | Met EX-BIN 5333 | -9/Exiles | Aligned with FarCom system 5336 | -9/Exiles | Given EX-Vault access code 5458 | -9/Exiles | Opened EX-Vault 5480 | -9/Exiles | Found XL Autogun Array 5531 | -9/Exiles | Warned to stay clear of 0b10 Research branches 5556 | -9/Exiles | Exiles lab attacked by MAIN.C 5758 | -9/Exiles | Discovered new exit (range 14) 5788 | -9/Exiles | Left Exiles lab with XL Autogun Array 5788 | -9/Exiles | Entered Mines 5788 | -8/Mines | Accompanied by 3 allies 5904 | -8/Mines | Destroyed 10 combat bots 6016 | -8/Mines | Discovered new exit (range 11) 6058 | -8/Mines | Entered Materials 6058 | -8/Materials | Evolved 2 slots: Utility x1, Weapon x1 6235 | -8/Materials | Identified exit to Garrison 6287 | -8/Materials | Repaired Huge Storage Unit 6314 | -8/Materials | Repaired Ion Engine 6426 | -8/Materials | Garrison activated, responded to threat 6461 | -8/Materials | Destroyed 9 combat bots 7112 | -8/Materials | Build established: Hacker-Skirmisher 7862 | -8/Materials | Discovered new exit (range 3) 8837 | -8/Materials | Central database locked down 9074 | -8/Materials | Entered Garrison 9252 | -8/Garrison | Triggered checkpoint 9466 | -8/Garrison | Installed Relay Interface Framework 9559 | -8/Garrison | Discovered new exit (range 11) 9758 | -8/Garrison | Garrison Relay disabled 9820 | -8/Garrison | Build established: Tank 9852 | -8/Garrison | Triggered checkpoint 9966 | -8/Garrison | Triggered checkpoint 10016 | -8/Garrison | Triggered checkpoint 10042 | -8/Garrison | Triggered checkpoint 10138 | -8/Garrison | Build established: Commander-Tank 10322 | -8/Garrison | Triggered checkpoint 10531 | -8/Garrison | Garrison Relay disabled 10569 | -8/Garrison | Build established: Commander-Skirmisher 10639 | -8/Garrison | Discovered new exit (range 12) 10639 | -8/Garrison | Discovered new exit (range 41) 10639 | -8/Garrison | Discovered new exit (range 70) 10639 | -8/Garrison | Discovered new exit (range 67) 10869 | -8/Garrison | Spotted B-75 Beast 10920 | -8/Garrison | Lost 8 allies 10929 | -8/Garrison | Destroyed B-75 Beast 10945 | -8/Garrison | Lost 3 parts (1p2n) 11090 | -8/Garrison | Triggered checkpoint 11282 | -8/Garrison | Entered Materials 11477 | -8/Materials | Build established: Bothacker-Skirmisher 12144 | -8/Materials | Build established: Scavenger-Skirmisher 12604 | -8/Materials | Garrison activated, responded to threat 13338 | -8/Materials | Garrison activated, responded to threat 13361 | -8/Materials | Identified exit to Garrison 13498 | -8/Materials | Build established: Hacker-Skirmisher 14645 | -8/Materials | Discovered new exit (range 5) 14865 | -8/Materials | Build established: Scavenger-Skirmisher 15191 | -8/Materials | Repaired Broken Imp. Remote Datajack 15211 | -8/Materials | Discovered new exit (range 16) 15376 | -8/Materials | Build established: Hacker-Skirmisher 15678 | -8/Materials | Build established: Commander-Skirmisher 19138 | -8/Materials | Central database locked down 19320 | -8/Materials | Discovered new exit (range 17) 20156 | -8/Materials | Entered Factory 20156 | -7/Factory | Accompanied by 11 allies 20156 | -7/Factory | Evolved 2 slots: Propulsion x1, Utility x1 20226 | -7/Factory | Discovered new exit (range 6) 20446 | -7/Factory | Build established: Commander-Tank 20872 | -7/Factory | Discovered new exit (range 8) 21038 | -7/Factory | Lost 4 allies 21279 | -7/Factory | Fabricated System Shield (x1) 21338 | -7/Factory | Fabricated H-55 Commando (x2) 21402 | -7/Factory | Fabricated M-28 Smith (x1) 21440 | -7/Factory | Lost 4 allies 21653 | -7/Factory | Build established: Commander-Skirmisher 22058 | -7/Factory | Fabricated M-28 Smith? 22857 | -7/Factory | P-60 Hacker assimilated allied Virus 4b 22966 | -7/Factory | P-60 Hacker assimilated allied Technician 3b 22972 | -7/Factory | P-60 Hacker assimilated allied Trooper 4a 23190 | -7/Factory | Fabricated H-55 Commando? 23304 | -7/Factory | Discovered new exit (range 14) 23619 | -7/Factory | Build established: Hacker-Skirmisher 24210 | -7/Factory | Fabricated H-66 Slayer? 24360 | -7/Factory | Fabricated H-66 Slayer? 24474 | -7/Factory | Identified exit to Garrison 24480 | -7/Factory | Entered Garrison 24480 | -7/Garrison | Accompanied by 10 allies 24481 | -7/Garrison | Lost 3 allies 24512 | -7/Garrison | Triggered checkpoint 24549 | -7/Garrison | Garrison Relay disabled 24668 | -7/Garrison | Build established: Commander-Skirmisher 24980 | -7/Garrison | Triggered checkpoint 25066 | -7/Garrison | Triggered checkpoint 25102 | -7/Garrison | Garrison Relay disabled 25498 | -7/Garrison | Triggered checkpoint 25816 | -7/Garrison | Triggered checkpoint 25926 | -7/Garrison | Expanded RIF knowledge: Coupler Efficiency 26035 | -7/Garrison | Discovered new exit (range 10) 26152 | -7/Garrison | Triggered checkpoint 26248 | -7/Garrison | Discovered new exit (range 11) 26331 | -7/Garrison | Garrison Relay disabled 26373 | -7/Garrison | Discovered new exit (range 14) 26373 | -7/Garrison | Discovered new exit (range 66) 26373 | -7/Garrison | Discovered new exit (range 63) 26408 | -7/Garrison | Entered Factory 26408 | -7/Factory | Accompanied by 7 allies 26604 | -7/Factory | Identified exit to DSF 26926 | -7/Factory | Fabricated B-48 Gladiator (x3) 26952 | -7/Factory | Garrison activated, responded to threat 26974 | -7/Factory | Discovered new exit (range 14) 26988 | -7/Factory | Fabricated M-28 Smith? 27062 | -7/Factory | Identified exit to Garrison 27182 | -7/Factory | Lost 7 allies 27286 | -7/Factory | Entered Garrison 27286 | -7/Garrison | Accompanied by 3 allies 27438 | -7/Garrison | Build established: Hacker-Skirmisher 27467 | -7/Garrison | Lost 3 allies 27476 | -7/Garrison | Triggered checkpoint 27531 | -7/Garrison | Garrison Relay disabled 27687 | -7/Garrison | Triggered checkpoint 27784 | -7/Garrison | Triggered checkpoint 27838 | -7/Garrison | Build established: Bothacker-Skirmisher 27874 | -7/Garrison | Expanded RIF knowledge: Autooverride 27895 | -7/Garrison | Discovered new exit (range 13) 27980 | -7/Garrison | Triggered checkpoint 28075 | -7/Garrison | Garrison Relay disabled 28242 | -7/Garrison | Triggered checkpoint 28530 | -7/Garrison | Triggered checkpoint 28535 | -7/Garrison | Assimilated ARC 4a with formatsys_deep 28936 | -7/Garrison | Discovered new exit (range 10) 29064 | -7/Garrison | Triggered checkpoint 29092 | -7/Garrison | Triggered checkpoint 29168 | -7/Garrison | Garrison Relay disabled 29425 | -7/Garrison | Discovered new exit (range 13) 29440 | -7/Garrison | Triggered checkpoint 29478 | -7/Garrison | Garrison Relay disabled 29491 | -7/Garrison | Learned Factory security intel 29491 | -7/Garrison | Discovered new exit (range 71) 29491 | -7/Garrison | Discovered new exit (range 61) 29491 | -7/Garrison | Discovered new exit (range 20) 29583 | -7/Garrison | Build established: Commander-Skirmisher 29589 | -7/Garrison | Entered Factory 29589 | -6/Factory | Accompanied by 10 allies 29589 | -6/Factory | Evolved 2 slots: Propulsion x2 30044 | -6/Factory | Garrison activated, responded to threat 30107 | -6/Factory | Identified exit to Garrison 30243 | -6/Factory | Discovered new exit (range 12) 30289 | -6/Factory | First assault squad dispatched 30428 | -6/Factory | Entered Extension 30428 | -6/Extension | Accompanied by 7 allies 30652 | -6/Extension | Rescued a captive Derelict 30654 | -6/Extension | Rescued a captive Derelict 30773 | -6/Extension | Rescued a captive Derelict 30894 | -6/Extension | Lost 3 allies 30902 | -6/Extension | Rescued a captive Derelict 30903 | -6/Extension | Rescued a captive Derelict 31049 | -6/Extension | Spotted B-75 Beast 31053 | -6/Extension | Disrupted transfer network 31071 | -6/Extension | Spotted B-75 Beast 31074 | -6/Extension | Lost 12 allies 31083 | -6/Extension | Allies destroyed B-75 Beast 31107 | -6/Extension | Allies destroyed B-75 Beast 31245 | -6/Extension | Rescued a captive Derelict 31273 | -6/Extension | Rescued a captive Derelict 31297 | -6/Extension | Rescued A7 31306 | -6/Extension | Rescued a captive Derelict 31331 | -6/Extension | Rescued a captive Derelict 31511 | -6/Extension | Rescued a captive Derelict 31617 | -6/Extension | Discovered new exit (range 10) 31619 | -6/Extension | Discovered new exit (range 6) 31661 | -6/Extension | Entered Cetus 31661 | -6/Cetus | Accompanied by 22 allies (A7) 31666 | -6/Cetus | Acquired a Cetus Manufacturing Module code from A7 31682 | -6/Cetus | Spotted Cetus Guard 31682 | -6/Cetus | Spotted Cetus Guard 31683 | -6/Cetus | Spotted Cetus Guard 31683 | -6/Cetus | Spotted Cetus Guard 31685 | -6/Cetus | Allies destroyed Cetus Guard 31689 | -6/Cetus | Allies destroyed Cetus Guard 31693 | -6/Cetus | Allies destroyed Cetus Guard 31695 | -6/Cetus | Allies destroyed Cetus Guard 31889 | -6/Cetus | Started Cetus Manufacturing Module 31908 | -6/Cetus | Discovered new exit (range 15) 31914 | -6/Cetus | Manufactured an Enhanced Grunt 31935 | -6/Cetus | Spotted Cetus Guard 31935 | -6/Cetus | Spotted Cetus Guard 31938 | -6/Cetus | Spotted Cetus Guard 31939 | -6/Cetus | Manufactured an Enhanced Grunt 31941 | -6/Cetus | Spotted Cetus Guard 31946 | -6/Cetus | Discovered new exit (range 16) 31948 | -6/Cetus | Allies destroyed Cetus Guard 31948 | -6/Cetus | Allies destroyed Cetus Guard 31951 | -6/Cetus | Allies destroyed Cetus Guard 31957 | -6/Cetus | Allies destroyed Cetus Guard 31960 | -6/Cetus | Met Revision 17 31964 | -6/Cetus | Manufactured an Enhanced Grunt 31989 | -6/Cetus | Manufactured an Enhanced Grunt 32014 | -6/Cetus | Manufactured an Enhanced Grunt 32261 | -6/Cetus | Entered Archives 32261 | -6/Archives | Accompanied by 22 allies (A7) 32307 | -6/Archives | Discovered new exit (range 16) 32317 | -6/Archives | Lost 3 allies 32366 | -6/Archives | Discovered new exit (range 15) 32475 | -6/Archives | Entered Hub_04(d) 32475 | -6/Hub_04(d) | Accompanied by 17 allies 32583 | -6/Hub_04(d) | Discovered new exit (range 15) 33163 | -6/Hub_04(d) | Network Hub disabled 33204 | -6/Hub_04(d) | Spotted Lightning 33204 | -6/Hub_04(d) | Spotted Lightning 33205 | -6/Hub_04(d) | Spotted Lightning 33211 | -6/Hub_04(d) | Destroyed Lightning 33223 | -6/Hub_04(d) | Network Hub disabled 33232 | -6/Hub_04(d) | Garrison activated, responded to threat 33263 | -6/Hub_04(d) | Destroyed Lightning 33286 | -6/Hub_04(d) | Lost 13 allies 33287 | -6/Hub_04(d) | Lost 4 parts (2n2w) 33319 | -6/Hub_04(d) | Found Corrupted Prototype Energy Cannon 33325 | -6/Hub_04(d) | Destroyed 7 combat bots 33456 | -6/Hub_04(d) | Local machine network offline 33458 | -6/Hub_04(d) | Garrison activated, responded to threat 33481 | -6/Hub_04(d) | Discovered new exit (range 8) 33492 | -6/Hub_04(d) | Identified exit to Garrison 33500 | -6/Hub_04(d) | Entered Garrison 33539 | -6/Garrison | Triggered checkpoint 33539 | -6/Garrison | Garrison Relay disabled 33560 | -6/Garrison | Build established: Scavenger-Skirmisher 33770 | -6/Garrison | Triggered checkpoint 33826 | -6/Garrison | Core integrity fell below 50% 33841 | -6/Garrison | Lost 4 allies 33890 | -6/Garrison | Triggered checkpoint 33912 | -6/Garrison | Triggered checkpoint 33966 | -6/Garrison | Triggered checkpoint 34016 | -6/Garrison | Discovered new exit (range 11) 34048 | -6/Garrison | Triggered checkpoint 34088 | -6/Garrison | Triggered checkpoint 34099 | -6/Garrison | Garrison Relay disabled 34272 | -6/Garrison | Triggered checkpoint 34318 | -6/Garrison | Garrison Relay disabled 34354 | -6/Garrison | Discovered new exit (range 14) 34378 | -6/Garrison | Spotted B-75 Beast 34613 | -6/Garrison | Entered Factory 34613 | -5/Factory | Evolved 2 slots: Utility x2 34844 | -5/Factory | Lost 4 parts (1n1u2w) 34850 | -5/Factory | System corruption reached 10% 34913 | -5/Factory | First assault squad dispatched 34988 | -5/Factory | Fabricated H-66 Slayer? 35093 | -5/Factory | Fabricated H-66 Slayer (x2) 35155 | -5/Factory | Fabricated H-66 Slayer? 35220 | -5/Factory | Fabricated M-28 Smith (x1) 35243 | -5/Factory | Fabricated H-66 Slayer (x2) 35298 | -5/Factory | Fabricated H-66 Slayer (x2) 35350 | -5/Factory | Fabricated Y-54 Guardian (x2) 35449 | -5/Factory | Fabricated H-66 Slayer (x2) 35521 | -5/Factory | Lost 3 parts (2n1w) 35521 | -5/Factory | Lost 12 allies 35782 | -5/Factory | Build established: Scavenger-Mutant 35938 | -5/Factory | Identified exit to Garrison 35981 | -5/Factory | Garrison activated, responded to threat 36471 | -5/Factory | Lost 3 parts (3u) 36620 | -5/Factory | Discovered new exit (range 10) 36728 | -5/Factory | Build established: Scavenger-Tank 36782 | -5/Factory | Identified exit to Upper Caves 36878 | -5/Factory | Sucked down chute 36878 | -5/Factory | Entered Waste 36879 | -5/Waste | Met a frightened Derelict 36888 | -5/Waste | 2 allies followed down the chute 36893 | -5/Waste | Spotted C-40 Crusher 36893 | -5/Waste | Spotted C-40 Crusher 36908 | -5/Waste | Spotted C-40 Crusher 36908 | -5/Waste | Allies destroyed C-40 Crusher 36924 | -5/Waste | Spotted C-40 Crusher 36925 | -5/Waste | Spotted C-40 Crusher 36948 | -5/Waste | Lost 3 allies 37002 | -5/Waste | Crushed by Compactor (1 part destroyed, 1 dropped) 37006 | -5/Waste | Crushed by Compactor (1 part destroyed, 1 dropped) 37030 | -5/Waste | Crushed by Compactor (1 part destroyed, 1 dropped) 37036 | -5/Waste | Spotted C-40 Crusher 37040 | -5/Waste | Crushed by Compactor (1 part destroyed, 2 dropped) 37043 | -5/Waste | Crushed by Compactor (1 part destroyed, 1 dropped) 37062 | -5/Waste | Crushed by Compactor (1 part destroyed, 2 dropped) 37077 | -5/Waste | Discovered new exit (range 11) 37082 | -5/Waste | Entered Factory 37093 | -5/Factory | Lost 7 parts (1p3n3w) 37242 | -5/Factory | Fabricated H-66 Slayer? 37394 | -5/Factory | Lost 3 parts (1p1n1u) 37507 | -5/Factory | Build established: Mutant 37692 | -5/Factory | Self-destructed Last Messages --------------- 37671_ Switching to secondary target: S-27 Virus. 37671_ S-27 Virus destroyed. 37672_ The unstable cave ceiling collapses. 37672_ K-01 Serf collects debris. 37673_ The unstable cave ceiling collapses. 37674_ U-05 Engineer destroyed. 37675_ K-01 Serf collects debris. 37676_ Penetrated by Slug. 37678_ K-01 Serf collects debris. 37678_ Penetrated by Slug. 37681_ K-01 Serf collects debris. 37682_ Penetrated by Slug. 37682_ Adv. Plasma Cannon destroyed. 37684_ K-01 Serf collects debris. 37688_ Y-64 Sentinel IFF system glitched. 37688_ K-01 Serf collects debris. 37691_ Acquired Terrain Scan Processor. 37692_ The unstable cave ceiling collapses. 37692_ U-05 Engineer lays Concrete. Map ----- +----------------------------------------------------+ | + ! #??????????????? ^??????????????? | | # #??????????????# ??????? "?????? | | ###############?????????????# ?????? "????? | | ## ! #?????????????+ "????? ?????? | | ## #?????????????# "???? ????? | | # """"""""" #?????????????# ^??? ""????? | | # #?????????????# "??? """???? | | # #?????????????# "??? """ ??? | | ! # [[ #?????????????# """" "" ?? | | + [ #?????????????+^^"""" "" ?"? | | # #????########## """" ? | | # #????# # """" """ "?? | | # #????# # """" """ "?? | | " """"""""" #????# # """ """ | | ### #????# """" # "" "" | | #?##############????# """" # "" "? | | #???????????????????# """" # ???? | | #???????????????????# """" # p p ?????? | | #???????????????????# # ????????? | | #???????????????????# # #??????????? | | ########################+##### #??????????? | | [ #??????????? | | Y = [ #??????????? | | =! =%= #??????????? | | !%= %** u#??????????? | | u@ = ###????????? | | ###+######+############ k #????????? | | # ???# # % ###??????? | | #### """ ?# "" """" # [ #??????? | | ???# """ # "" F " # # #??????? | | ???# """ # """ # ##?????? | | ???# # """ # #?????? | | ???# """ # """ # # #?????? | | ???# """ # # # #?????? | | ???# """ # # #?????? | | ???# # # # #?????? | | ???##???##### # ## # # #?????? | | ????????????# + #### # ####?????? | | ????????????# # #??? ? ???????? | | ????????????######+####### #??? ? ?????? | | ????????????# # #???? ? #????? | | ????????????# # #???? ? #????? | | ????????????# """ """ # ^+???? """ ? #????? | | ????????????# """ """ + #?????""" ?#????? | | ????????????# """ """ # +?????""" ?????? | | ????????????# # #??????"" #????? | | ????????????# """ """ # #??????"?? #????? | | ????????????# """ """ = ##### #?????????? #????? | | ????????????# """ """ #???? #??????????? #????? | | ????????????# #???? #?????????????????? | +----------------------------------------------------+ Best States ------------- Heat Dissipation 90 Energy Generation 25 Energy Capacity 350 Matter Stores 304 Matter Capacity 550 Sight Range 22 Robot Scan Range 20 Terrain Scan Range 16 Terrain Scan Density 10 Additional Mass Support 12 Armor Coverage 450 Resistance: KI 20 Resistance: TH 20 Resistance: EX 20 Resistance: EM 20 Resistance: I 20 Resistance: S 20 Resistance: P 20 Propulsion Shielding 66 Weapon Shielding 66 Evasion (%) 62 Targeting Accuracy 8 Target Analysis 6 Recoil Reduction 6 Energy Filtering 50 Particle Charging 25 Offensive Hacking 44 Defensive Hacking 12 Relay Coupler Types 2 Relay Coupler Value 79 Authchip Count 10 Item Schematics ----------------- Lgt. Treads | -9/Materials | Scanalyzed Hrd. Light Armor Plating | -9/Materials | Scanalyzed Ion Engine | -9/Materials | Scanalyzed Rocket Launcher | -9/Materials | Scanalyzed Imp. Heat Sink | -9/Materials | Scanalyzed Shotgun | -9/Materials | Scanalyzed Field Recycling Unit | -9/Materials | Extracted Autogun | -9/Materials | Extracted Terrain Scan Processor | -9/Materials | Extracted Hammer | -9/Materials | Extracted EM Shotgun | -9/Materials | Scanalyzed Lrg. Storage Unit | -9/Materials | Scanalyzed Hcp. Battery | -9/Materials | Scanalyzed Adv. Weight Redist. System | -8/Materials | Scanalyzed Hpw. Shotgun | -8/Materials | Scanalyzed Imp. Weapon Shielding | -8/Materials | Scanalyzed Hacking Suite | -8/Materials | Scanalyzed Prc. Beam Rifle | -8/Materials | Scanalyzed Med. Armor Plating | -8/Materials | Scanalyzed Adv. System Restoration Module | -8/Materials | Scanalyzed Imp. Remote Datajack | -8/Materials | Scanalyzed Adv. Cooling System | -8/Materials | Scanalyzed Imp. Airjet | -8/Materials | Scanalyzed System Shield | -8/Materials | Hacked Hcp. Storage Unit | -7/Factory | Scanalyzed Imp. Surge Thruster | -6/Hub_04(d) | Hacked Arm. Medium Treads | -5/Factory | Scanalyzed Robot Schematics ------------------ M-28 Smith | -8/Materials | Hacked Y-45 Defender | -8/Materials | Hacked H-55 Commando | -8/Materials | Hacked G-47 Trooper | -8/Materials | Hacked O-24 Administrator | -8/Materials | Hacked S-27 Virus | -7/Factory | Hacked H-66 Slayer | -7/Factory | Hacked I-36 Angel | -6/Extension | Hacked M-14 Sweeper | -6/Extension | Hacked Y-54 Guardian | -6/Hub_04(d) | Hacked Fabricated ------------ System Shield | x1 | -7/Factory | Authchip H-55 Commando | x2 | -7/Factory | Authchip M-28 Smith | x1 | -7/Factory | Authchip M-28 Smith | x1 | -7/Factory | Authchip H-55 Commando | x2 | -7/Factory H-66 Slayer | x2 | -7/Factory H-66 Slayer | x2 | -7/Factory B-48 Gladiator | x3 | -7/Factory | Preloaded M-28 Smith | x1 | -7/Factory H-66 Slayer | x2 | -5/Factory | Authchip H-66 Slayer | x2 | -5/Factory | Authchip H-66 Slayer | x2 | -5/Factory | Authchip M-28 Smith | x1 | -5/Factory H-66 Slayer | x2 | -5/Factory | Authchip H-66 Slayer | x2 | -5/Factory | Authchip Y-54 Guardian | x2 | -5/Factory | Authchip H-66 Slayer | x2 | -5/Factory | Authchip H-66 Slayer | x2 | -5/Factory | Authchip Alien Tech Used ----------------- None Achievements -------------- None Challenges ------------ None Game ------ Seed GuidanceLatentMegatreads Manual? 0 Play Time 04:56:23 Cumulative 464.1 hours Start 2024.07.12 @ 10:21:16 End 2024.07.12 @ 15:17:37 Sessions 1 Manual Loads 0 Difficulty Adventurer Special Mode None Game No. 81 Rogue 0 Adventurer 81 Explorer 0 Win Type - Total 4 Types 2/0/0/2/0/0/0/0/0 Lore% 58 Gallery% 79 Achievement% 67 Wizard Run 0 Options --------- Layout 2 ASCII 0 Keyboard 0 Movement Mouse Keybinds 0 Fullscreen 1 Font 24/Smallcaps Map View 50x49 Zoom Use 0% Tactical HUD 1 Map Filters NONE Filters NONE Steam 1 RUN: b435d05f-7bd5-4513-839b-6e955d14eafa